bitfinex/quotes_BTCUSD_20251027
["timestamp","ask_amount","ask_price","bid_price","bid_amount"]
[1761574191740,1.18623347,114780.0,114770.0,0.38512]
[1761574191945,1.22923347,114780.0,114770.0,0.38512]
[1761574192236,1.18723347,114780.0,114770.0,0.38512]
[1761574192465,1.22923347,114780.0,114770.0,0.39012]
[1761574192864,0.67379018,114780.0,114770.0,0.39012]
[1761574193102,1.22923347,114780.0,114770.0,0.39012]
[1761574193505,0.67379018,114780.0,114770.0,0.39012]
[1761574193666,1.22923347,114780.0,114770.0,0.39012]
[1761574193879,1.22923347,114780.0,114770.0,0.005]
[1761574194084,1.22923347,114780.0,114770.0,0.5992]
[1761574194415,1.25251782,114780.0,114770.0,0.5992]
[1761574194724,1.25251782,114780.0,114770.0,0.005]
[1761574195066,1.25251782,114780.0,114770.0,0.5992]
[1761574195263,1.25251782,114780.0,114770.0,0.3692]
[1761574195464,1.25251782,114780.0,114770.0,0.5992]
[1761574195669,0.69707453,114780.0,114770.0,0.5992]
[1761574195901,1.25251782,114780.0,114770.0,0.005]
[1761574196117,1.22923347,114780.0,114770.0,0.5992]
[1761574196313,1.25251782,114780.0,114770.0,0.5992]
[1761574198418,0.69707453,114780.0,114770.0,0.5992]
[1761574198592,1.25251782,114780.0,114770.0,0.5992]
[1761574201372,1.25251782,114780.0,114720.0,3.91114731]
[1761574201373,0.17429063,114760.0,114720.0,3.91114731]
[1761574201590,0.60411505,114750.0,114740.0,0.05576]
[1761574201790,1.20951804,114750.0,114740.0,0.05576]
[1761574202083,1.21728981,114750.0,114740.0,0.05576]
[1761574202283,1.34878108,114750.0,114740.0,0.2108]
[1761574202694,1.27999599,114750.0,114740.0,0.2108]
[1761574203096,1.23346085,114750.0,114740.0,0.2108]
[1761574203564,1.87743928,114750.0,114740.0,0.2158]
[1761574203895,1.84638316,114750.0,114740.0,0.2158]
[1761574204315,1.87742511,114750.0,114740.0,0.2158]
[1761574204736,1.88356544,114750.0,114740.0,0.235]
[1761574204949,0.51432232,114730.0,114720.0,3.8552898]
[1761574205155,1.23347233,114730.0,114720.0,4.0852898]
[1761574205573,1.28003431,114730.0,114720.0,4.0852898]
[1761574205790,1.23347233,114730.0,114720.0,4.0852898]
[1761574206215,1.27352073,114730.0,114720.0,4.2403298]
[1761574206844,1.27452073,114730.0,114720.0,4.2403298]
[1761574207266,1.29776709,114730.0,114720.0,4.2403298]
[1761574207468,1.28159605,114730.0,114720.0,4.2403298]
[1761574208326,1.25055473,114730.0,114720.0,4.2403298]
[1761574208564,1.28159605,114730.0,114720.0,4.2403298]
[1761574209061,1.31777833,114730.0,114720.0,4.2403298]
[1761574209697,1.31065855,114730.0,114720.0,4.2403298]
[1761574211188,0.77842019,114730.0,114720.0,4.2403298]
[1761574211406,0.18074769,114730.0,114720.0,4.2403298]
[1761574211628,0.33186508,114730.0,114720.0,4.2403298]
[1761574211836,0.30518973,114730.0,114720.0,4.2403298]
[1761574212084,0.91667618,114730.0,114720.0,4.2403698]
[1761574212310,1.25667618,114730.0,114720.0,4.2403698]
[1761574212543,0.18691057,114730.0,114720.0,4.2403698]
[1761574212786,1.08135386,114730.0,114720.0,4.2403698]
[1761574213015,1.25567618,114730.0,114720.0,4.2403698]
[1761574213448,0.70023289,114730.0,114720.0,4.2403698]
[1761574213663,1.25567618,114730.0,114720.0,4.2403698]
[1761574213863,1.21567618,114730.0,114720.0,4.2403698]
[1761574214084,1.22767618,114730.0,114720.0,4.2403698]
[1761574214504,1.21567618,114730.0,114720.0,4.2403698]
[1761574215350,0.66023289,114730.0,114720.0,4.2403698]
[1761574215620,1.21567618,114730.0,114720.0,4.2403698]
[1761574215842,1.22867618,114730.0,114720.0,4.2403698]
[1761574216278,1.17263302,114730.0,114720.0,4.2403698]
[1761574216475,0.9983107,114730.0,114720.0,4.2403698]
[1761574216684,0.44286741,114730.0,114720.0,4.2403698]
[1761574216972,1.17263302,114730.0,114720.0,4.2403698]
[1761574220243,0.9983107,114730.0,114720.0,4.2403698]
[1761574220470,0.44286741,114730.0,114720.0,4.41470731]
[1761574220685,0.0130484,114730.0,114720.0,4.41470731]
[1761574220897,0.0130484,114730.0,114720.0,4.9701506]
[1761574221073,0.0130484,114730.0,114720.0,4.2403698]
[1761574221328,0.56849169,114730.0,114720.0,4.2403698]
[1761574221556,0.0130484,114730.0,114720.0,4.41470731]
[1761574221770,0.6583107,114730.0,114720.0,3.6461698]
[1761574221943,0.10286741,114730.0,114720.0,4.41482731]
[1761574222943,0.10286741,114730.0,114720.0,4.2404898]
[1761574223145,0.6583107,114730.0,114720.0,3.6461698]
[1761574223345,0.10286741,114730.0,114720.0,4.2404498]
[1761574223553,0.68602821,114730.0,114720.0,4.2404498]
[1761574223921,0.68602821,114730.0,114720.0,3.6461698]
[1761574224123,0.68602821,114730.0,114720.0,4.2404498]
[1761574224249,0.30490724,114730.0,114720.0,4.0104098]
[1761574224629,0.30490724,114730.0,114720.0,3.6461698]
[1761574224630,0.68602821,114730.0,114720.0,3.6461698]
[1761574224801,0.68602821,114730.0,114720.0,4.2404498]
[1761574225034,0.13058492,114730.0,114720.0,4.41478731]
[1761574225220,0.10286741,114730.0,114720.0,4.41478731]
[1761574226201,0.10286741,114730.0,114720.0,4.2404498]
[1761574226430,0.83263302,114730.0,114720.0,4.2404498]
[1761574227261,0.27718973,114730.0,114720.0,4.2404498]
[1761574227420,0.6583107,114730.0,114720.0,4.1846498]
[1761574227624,0.10286741,114730.0,114720.0,4.41474731]
[1761574227828,0.10286741,114730.0,114720.0,4.2404098]
[1761574228759,0.10286741,114730.0,114720.0,4.41474731]
[1761574229167,0.83263302,114730.0,114720.0,4.2404098]
[1761574229879,0.6583107,114730.0,114720.0,4.2404098]
[1761574230087,0.10286741,114730.0,114720.0,4.2404098]
[1761574230301,0.6583107,114730.0,114720.0,4.2404098]
[1761574230586,0.10286741,114730.0,114720.0,4.2404098]
[1761574230824,0.30490723,114730.0,114720.0,4.2404098]
[1761574231045,1.21897337,114730.0,114720.0,3.8553298]
[1761574231237,1.25026105,114730.0,114720.0,4.0853698]
[1761574231385,1.25026105,114730.0,114720.0,4.2404098]
[1761574231784,0.69481776,114730.0,114720.0,4.2404098]
[1761574231988,1.25026105,114730.0,114720.0,4.2404098]
[1761574232229,0.11657301,114730.0,114720.0,4.41474731]
[1761574232446,0.09086741,114730.0,114720.0,4.41474731]
[1761574232644,0.10186741,114730.0,114720.0,4.41474731]
[1761574232932,0.09086741,114730.0,114720.0,4.41474731]
[1761574233259,0.10186741,114730.0,114720.0,4.38974731]
[1761574233452,0.08986741,114730.0,114720.0,4.38974731]
[1761574233685,0.09086741,114730.0,114720.0,4.38974731]
[1761574233888,0.10286741,114730.0,114720.0,4.38974731]
[1761574234086,0.09086741,114730.0,114720.0,4.38974731]
[1761574235042,0.08986741,114730.0,114720.0,4.38974731]
[1761574235837,0.10186741,114730.0,114720.0,4.38974731]
[1761574236249,0.08986741,114730.0,114720.0,4.38974731]
[1761574236450,0.01862285,114740.0,114730.0,0.17432232]
[1761574236666,0.08981901,114750.0,114740.0,0.17429982]
[1761574236865,0.81955423,114750.0,114740.0,0.2108]
[1761574237022,0.84628339,114750.0,114730.0,8.482e-05]
[1761574237230,0.55544329,114740.0,114730.0,0.17440714]
[1761574237429,0.6452623,114740.0,114730.0,0.76864714]
[1761574237669,0.6452623,114740.0,114730.0,8.482e-05]
[1761574238012,0.6452623,114740.0,114730.0,0.59432482]
[1761574238013,0.66389977,114740.0,114730.0,0.59432482]
[1761574238221,0.66389977,114740.0,114730.0,0.76864714]
[1761574238362,0.67198964,114740.0,114730.0,0.76864714]
[1761574238558,0.67198964,114740.0,114730.0,8.482e-05]
[1761574238770,0.67198964,114740.0,114730.0,0.59432482]
[1761574238970,0.68398964,114740.0,114730.0,0.59432482]
[1761574239728,0.85829676,114740.0,114730.0,0.59432482]
[1761574240287,0.30285347,114740.0,114730.0,0.59432482]
[1761574240488,0.85829676,114740.0,114730.0,0.59432482]
[1761574241714,0.68398964,114740.0,114730.0,0.59432482]
[1761574241872,0.12855564,114740.0,114730.0,0.76864714]
[1761574242087,0.10991817,114740.0,114730.0,0.76864714]
[1761574242293,0.10991817,114740.0,114730.0,0.59432482]
[1761574242547,0.10991817,114740.0,114730.0,0.76864714]
[1761574242953,0.012,114740.0,114730.0,0.76864714]
[1761574245301,0.012,114740.0,114730.0,1.32409043]
[1761574245427,0.012,114740.0,114730.0,0.76864714]
[1761574248588,0.012,114740.0,114730.0,0.43928482]
[1761574248809,0.10181901,114740.0,114730.0,0.76856714]
[1761574248942,0.012,114740.0,114730.0,0.76856714]
[1761574252532,0.10181901,114740.0,114730.0,0.76856714]
[1761574253810,0.012,114740.0,114730.0,0.76856714]
[1761574254364,0.012,114740.0,114730.0,0.85916714]
[1761574256567,0.12044824,114740.0,114730.0,0.85916714]
[1761574257616,0.10181901,114740.0,114730.0,0.85916714]
[1761574257827,0.61612613,114740.0,114730.0,0.68484482]
[1761574258564,1.30352399,114740.0,114730.0,0.68484482]
[1761574258798,1.30352399,114740.0,114730.0,0.52984482]
[1761574259072,1.33025809,114740.0,114730.0,0.52984482]
[1761574259204,1.33025809,114740.0,114730.0,0.68480482]
[1761574259612,1.35346302,114740.0,114730.0,0.68480482]
[1761574259855,1.3776453,114740.0,114730.0,0.68480482]
[1761574260058,1.3786453,114740.0,114730.0,0.68480482]
[1761574260229,1.3896453,114740.0,114730.0,0.68480482]
[1761574260428,1.3896453,114740.0,114730.0,0.59420482]
[1761574260646,2.76572367,114740.0,114730.0,0.59420482]
[1761574260888,2.73468235,114740.0,114730.0,0.43924482]
[1761574261113,2.73468235,114740.0,114720.0,3.6211698]
[1761574261114,0.85307532,114730.0,114720.0,3.6211698]
[1761574261303,0.85307532,114730.0,114720.0,4.00631616]
[1761574261304,1.75088142,114730.0,114720.0,4.00631616]
[1761574261513,1.7870637,114730.0,114720.0,4.00631616]
[1761574261722,1.77599323,114730.0,114720.0,3.5693269]
[1761574261931,1.77599323,114730.0,114720.0,3.54318529]
[1761574262342,1.77599323,114730.0,114720.0,3.51704368]
[1761574262520,1.77140093,114730.0,114720.0,3.49088759]
[1761574262767,1.77140093,114730.0,114720.0,3.4647315]
[1761574262962,1.77540093,114730.0,114720.0,3.43857541]
[1761574263163,1.80040093,114730.0,114720.0,3.43857541]
[1761574264396,1.79040094,114730.0,114720.0,3.43857541]
[1761574264836,1.80040093,114730.0,114720.0,3.43857541]
[1761574265755,1.11300307,114730.0,114720.0,3.43857541]
[1761574265946,1.79040094,114730.0,114720.0,3.43857541]
[1761574266825,1.81657122,114730.0,114720.0,3.43857541]
[1761574267246,1.82657121,114730.0,114720.0,3.43857541]
[1761574267460,2.51396907,114730.0,114720.0,3.28361541]
[1761574267679,1.82657121,114730.0,114720.0,3.43861541]
[1761574268241,1.82257121,114730.0,114720.0,3.43861541]
[1761574268550,1.8147501,114730.0,114720.0,3.43861541]
[1761574268956,1.8427501,114730.0,114720.0,3.43861541]
[1761574269300,2.48913459,114730.0,114720.0,2.86730038]
[1761574269501,2.50696907,114730.0,114720.0,2.68318251]
[1761574269672,2.50696907,114730.0,114720.0,2.64986182]
[1761574270081,2.50696907,114730.0,114720.0,1.95879745]
[1761574270280,2.50696907,114730.0,114720.0,2.0867979]
[1761574270281,2.51152055,114730.0,114720.0,2.0867979]
[1761574270462,2.51152055,114730.0,114720.0,1.83307311]
[1761574270663,2.51152055,114730.0,114720.0,1.73711147]
[1761574270887,2.50652055,114730.0,114720.0,1.68254327]
[1761574271088,2.50652055,114730.0,114720.0,1.2326824]
[1761574271361,2.23053497,114710.0,114700.0,0.05616]
[1761574271562,3.05056539,114690.0,114680.0,0.004]
[1761574271772,3.35446388,114690.0,114680.0,0.1512484]
[1761574271960,3.03623888,114690.0,114680.0,0.1512484]
[1761574272166,1.66195536,114690.0,114680.0,0.1512484]
[1761574272567,0.9745575,114690.0,114680.0,0.1512484]
[1761574272737,1.66195536,114690.0,114680.0,0.1512484]
[1761574272947,1.52511036,114690.0,114680.0,0.1512484]
[1761574273143,1.53400289,114690.0,114680.0,0.1512484]
[1761574273531,1.57100289,114690.0,114680.0,0.1512484]
[1761574274245,0.18664308,114690.0,114680.0,0.1512484]
[1761574274454,0.99359998,114690.0,114680.0,0.1512484]
[1761574274661,1.15421687,114690.0,114680.0,0.1512484]
[1761574274864,0.46681901,114690.0,114680.0,0.32564672]
[1761574275047,0.43481901,114690.0,114680.0,0.32564672]
[1761574275477,0.08981901,114690.0,114680.0,0.32564672]
[1761574275991,0.09081901,114690.0,114680.0,0.32564672]
[1761574276775,0.10281901,114690.0,114680.0,0.32564672]
[1761574277189,0.10181901,114690.0,114680.0,0.32564672]
[1761574277638,0.10181901,114690.0,114680.0,0.32627043]
[1761574278626,0.08981901,114690.0,114680.0,0.32627043]
[1761574279046,0.10181901,114690.0,114680.0,0.32627043]
[1761574279372,0.08981901,114690.0,114680.0,0.17907043]
[1761574279583,0.08981901,114690.0,114680.0,0.77347043]
[1761574279792,0.10181901,114690.0,114680.0,0.77347043]
[1761574280408,1.15101475,114690.0,114680.0,0.59907211]
[1761574280593,1.30359998,114690.0,114680.0,0.59907211]
[1761574280891,1.30459998,114690.0,114680.0,0.59907211]
[1761574281083,1.29259998,114690.0,114680.0,0.59907211]
[1761574281302,1.31112238,114690.0,114680.0,0.59907211]
[1761574281517,1.32312238,114690.0,114680.0,0.59907211]
[1761574281726,1.33116074,114690.0,114680.0,0.59907211]
[1761574282114,1.32312238,114690.0,114680.0,0.59907211]
[1761574282327,1.36734344,114690.0,114680.0,0.59907211]
[1761574282441,1.39048346,114690.0,114680.0,0.44407211]
[1761574282645,1.39048346,114690.0,114680.0,0.59907211]
[1761574283286,1.35430118,114690.0,114680.0,0.59907211]
[1761574283499,1.38948346,114690.0,114680.0,0.59907211]
[1761574283704,1.39348346,114690.0,114680.0,0.59907211]
[1761574284295,1.18291807,114690.0,114680.0,0.59907211]
[1761574284532,0.66990332,114690.0,114680.0,0.59907211]
[1761574284680,1.35730118,114690.0,114680.0,0.59907211]
[1761574284881,1.34130118,114690.0,114680.0,0.59907211]
[1761574285082,1.20872689,114690.0,114680.0,0.59907211]
[1761574285284,0.52232903,114690.0,114680.0,0.59907211]
[1761574285484,1.37311,114690.0,114680.0,0.59907211]
[1761574285692,0.4924715,114690.0,114680.0,0.77347043]
[1761574286113,0.52332903,114690.0,114680.0,0.77347043]
[1761574286320,0.4924715,114690.0,114680.0,0.77347043]
[1761574286547,0.4914715,114690.0,114680.0,0.77347043]
[1761574286992,0.4924715,114690.0,114680.0,0.77347043]
[1761574288339,0.52332903,114690.0,114680.0,0.77347043]
[1761574289088,0.50018901,114690.0,114680.0,0.77347043]
[1761574289789,0.52347996,114690.0,114680.0,0.77347043]
[1761574289994,0.18347996,114690.0,114680.0,0.77347043]
[1761574290237,0.15262243,114690.0,114680.0,0.77347043]
[1761574290791,0.12933148,114690.0,114680.0,0.77347043]
[1761574295493,0.11080908,114690.0,114680.0,0.77347043]
[1761574299013,0.11080908,114690.0,114680.0,0.86411043]
[1761574299318,0.02103909,114690.0,114680.0,0.86411043]
[1761574299504,0.013,114690.0,114680.0,1.55150829]
[1761574299692,0.013,114690.0,114680.0,1.57674206]
[1761574299925,0.013,114690.0,114680.0,1.55150829]
[1761574300098,0.013,114690.0,114680.0,0.86411043]
[1761574300324,0.012,114690.0,114680.0,1.55150829]
[1761574301663,0.41267088,114720.0,114710.0,0.17435271]
[1761574301878,0.5267358,114720.0,114710.0,0.38507271]
[1761574302621,0.70107331,114720.0,114710.0,0.21072]
[1761574302995,1.38847117,114720.0,114710.0,0.21072]
[1761574303204,1.39130723,114720.0,114710.0,0.21072]
[1761574303337,1.39230723,114720.0,114710.0,0.21072]
[1761574303746,1.21696972,114720.0,114710.0,0.38507271]
[1761574304163,1.21796972,114720.0,114710.0,0.38507271]
[1761574304808,0.53057186,114720.0,114710.0,0.38507271]
[1761574305017,0.49971433,114720.0,114710.0,0.21072]
[1761574305167,1.3424497,114720.0,114710.0,0.38508]
[1761574305500,1.3634497,114720.0,114710.0,0.38508]
[1761574305740,1.37230723,114720.0,114710.0,0.38508]
[1761574305855,1.24173731,114720.0,114710.0,0.38508]
[1761574306059,1.26073731,114720.0,114710.0,0.38508]
[1761574306263,1.25973731,114720.0,114710.0,0.38508]
[1761574306461,1.22887978,114720.0,114710.0,0.38508]
[1761574306713,1.18806643,114720.0,114710.0,0.38508]
[1761574306922,1.2299782,114720.0,114710.0,0.38508]
[1761574307284,1.05564069,114720.0,114710.0,0.38508]
[1761574307488,0.49981275,114720.0,114710.0,0.55943271]
[1761574307840,0.67415026,114720.0,114710.0,0.38508]
[1761574307984,0.49981275,114720.0,114710.0,0.55943271]
[1761574308859,0.13652843,114720.0,114710.0,0.55943271]
[1761574309025,0.11790098,114720.0,114710.0,0.55943271]
[1761574309259,0.02,114720.0,114710.0,1.11526065]
[1761574309627,0.02,114720.0,114710.0,0.55943271]
[1761574310247,0.019,114720.0,114710.0,0.55943271]
[1761574310470,0.01862745,114740.0,114730.0,0.17432232]
[1761574310702,0.09790033,114740.0,114730.0,0.32924232]
[1761574311817,0.65372827,114740.0,114730.0,0.32924232]
[1761574312020,0.67235572,114740.0,114730.0,0.32924232]
[1761574312221,0.69535572,114740.0,114730.0,0.32924232]
[1761574312447,0.69635572,114740.0,114730.0,0.32924232]
[1761574312659,0.14052778,114740.0,114730.0,0.32924232]
[1761574312821,0.29620745,114740.0,114730.0,0.15492]
[1761574313032,0.3148349,114740.0,114730.0,0.15492]
[1761574313433,0.87066284,114740.0,114730.0,0.15492]
[1761574313836,1.21066284,114740.0,114730.0,0.15492]
[1761574314446,1.21065162,114740.0,114730.0,0.15492]
[1761574314973,1.21065162,114740.0,114730.0,0.36412]
[1761574315182,1.21065162,114740.0,114730.0,0.53844]
[1761574315401,1.21065162,114740.0,114730.0,0.5942]
[1761574316076,1.20965162,114740.0,114730.0,0.5942]
[1761574316292,1.18765162,114740.0,114730.0,0.5942]
[1761574316511,1.21765162,114740.0,114730.0,0.5942]
[1761574316727,1.21665162,114740.0,114730.0,0.5942]
[1761574316941,1.18665162,114740.0,114730.0,0.5942]
[1761574317157,1.21765162,114740.0,114730.0,0.5942]
[1761574318486,0.48751656,114740.0,114730.0,0.5942]
[1761574318707,0.66182368,114740.0,114730.0,0.5942]
[1761574319386,0.48751656,114740.0,114730.0,0.76852232]
[1761574320041,0.14751656,114740.0,114730.0,0.76852232]
[1761574320327,0.12890033,114740.0,114730.0,0.76852232]
[1761574320566,0.001,114740.0,114730.0,0.76852232]
[1761574320805,0.01861623,114750.0,114740.0,0.17430712]
[1761574321002,0.2557984,114770.0,114750.0,0.17429193]
[1761574321208,0.42981901,114760.0,114750.0,0.17429193]
[1761574321407,0.45653201,114760.0,114750.0,0.38493193]
[1761574321621,0.63080876,114760.0,114750.0,0.21064]
[1761574322022,1.1866367,114760.0,114750.0,0.21064]
[1761574322597,0.66280876,114760.0,114750.0,0.21064]
[1761574322798,0.48953201,114760.0,114750.0,0.38493193]
[1761574323001,0.66380876,114760.0,114750.0,0.21064]
[1761574323983,1.2196367,114760.0,114750.0,0.21064]
[1761574324402,1.2196367,114760.0,114730.0,0.17432205]
[1761574324403,0.17429636,114750.0,114730.0,0.17432205]
[1761574324603,0.08981901,114740.0,114730.0,0.17432205]
[1761574324808,0.08981901,114740.0,114730.0,0.76840205]
[1761574325232,1.15372016,114760.0,114740.0,0.17429755]
[1761574325431,1.12879802,114760.0,114750.0,0.15833785]
[1761574325610,1.19534674,114760.0,114750.0,0.15833785]
[1761574325810,1.19534674,114760.0,114750.0,0.15488]
[1761574326320,1.32861703,114760.0,114750.0,0.15488]
[1761574326679,1.36561703,114760.0,114750.0,0.15488]
[1761574326919,1.32961703,114760.0,114750.0,0.15488]
[1761574327112,1.36261703,114760.0,114750.0,0.15488]
[1761574328320,1.36161703,114760.0,114750.0,0.15488]
[1761574329339,1.39247456,114760.0,114750.0,0.15488]
[1761574330098,0.76507526,114760.0,114750.0,0.15488]
[1761574330296,1.3209032,114760.0,114750.0,0.15488]
[1761574330624,1.3569032,114760.0,114750.0,0.15488]
[1761574331567,0.80107526,114760.0,114750.0,0.15488]
[1761574331757,1.3569032,114760.0,114750.0,0.15488]
[1761574333612,0.62679851,114760.0,114750.0,0.32917193]
[1761574333983,0.77780497,114760.0,114750.0,0.15488]
[1761574334354,0.60352822,114760.0,114750.0,0.33262804]
[1761574334559,0.60352822,114760.0,114750.0,0.32917193]
[1761574334972,0.60493293,114760.0,114750.0,0.32917193]
[1761574335174,0.49493293,114760.0,114750.0,0.32917193]
[1761574335368,0.15493293,114760.0,114750.0,0.32917193]
[1761574335590,0.13630158,114760.0,114750.0,0.32917193]
[1761574335715,0.13630158,114760.0,114750.0,0.15488]
[1761574336146,0.13630158,114760.0,114750.0,0.15833611]
[1761574337131,0.31057833,114760.0,114750.0,0.15833611]
[1761574337387,0.31057833,114760.0,114750.0,0.36396]
[1761574337388,0.91702174,114760.0,114750.0,0.36396]
[1761574337640,1.25702174,114760.0,114750.0,0.594]
[1761574337876,1.28787927,114760.0,114750.0,0.594]
[1761574338593,1.26460898,114760.0,114750.0,0.594]
[1761574340027,1.32739704,114760.0,114750.0,0.594]
[1761574340866,1.26460898,114760.0,114750.0,0.594]
[1761574341947,0.70878104,114760.0,114750.0,0.594]
[1761574342148,1.26460898,114760.0,114750.0,0.594]
[1761574343602,1.32740048,114760.0,114750.0,0.594]
[1761574344040,1.41740048,114760.0,114750.0,0.594]
[1761574344374,1.3707948,114760.0,114750.0,0.594]
[1761574345330,1.37792487,114760.0,114750.0,0.594]
[1761574345790,0.79878104,114760.0,114750.0,0.594]
[1761574346048,1.35460898,114760.0,114750.0,0.594]
[1761574346216,1.34282462,114760.0,114750.0,0.594]
[1761574346421,1.34282936,114760.0,114750.0,0.594]
[1761574347041,0.78700142,114760.0,114750.0,0.594]
[1761574347274,1.34282936,114760.0,114750.0,0.594]
[1761574347479,1.35902654,114760.0,114750.0,0.594]
[1761574348014,1.34282936,114760.0,114750.0,0.594]
[1761574348213,0.57315331,114760.0,114750.0,0.594]
[1761574348420,0.74743006,114760.0,114750.0,0.594]
[1761574349515,0.57315331,114760.0,114750.0,0.76829193]
[1761574349927,0.54983293,114760.0,114750.0,0.76829193]
[1761574350124,0.72410968,114760.0,114750.0,0.594]
[1761574350323,0.54983293,114760.0,114750.0,0.76829193]
[1761574351178,0.20983293,114760.0,114750.0,0.76829193]
[1761574351997,0.20983293,114760.0,114750.0,0.85010374]
[1761574352159,0.20983293,114760.0,114750.0,0.76829193]
[1761574353213,0.11983293,114760.0,114750.0,0.76829193]
[1761574353415,0.10120158,114760.0,114750.0,0.76829193]
[1761574353634,0.03840471,114760.0,114750.0,0.76829193]
[1761574353837,0.03840471,114760.0,114750.0,0.85811094]
[1761574356400,0.03840471,114760.0,114750.0,0.94871094]
[1761574356614,0.03840471,114760.0,114750.0,0.85889193]
[1761574357110,0.68405166,114760.0,114750.0,0.85889193]
[1761574357978,0.12822372,114760.0,114750.0,0.85889193]
[1761574358567,0.03840471,114760.0,114750.0,0.85889193]
[1761574360150,0.03840471,114760.0,114750.0,0.6846]
[1761574360348,0.03840471,114760.0,114750.0,0.85889193]
[1761574361573,0.85832841,114760.0,114750.0,0.52976]
[1761574361805,0.86641997,114760.0,114750.0,0.68448]
[1761574362038,0.69214322,114760.0,114750.0,0.68431269]
[1761574362307,0.69214322,114760.0,114750.0,0.85860462]
[1761574362308,0.12822372,114760.0,114750.0,0.85860462]
[1761574362478,0.12822372,114760.0,114750.0,0.68431269]
[1761574362684,0.12822372,114760.0,114750.0,0.85860462]
[1761574365412,0.03840471,114760.0,114750.0,0.85860462]
[1761574367393,0.12822372,114760.0,114750.0,0.68431269]
[1761574367821,0.12822372,114760.0,114750.0,0.85860462]
[1761574368196,0.12822372,114760.0,114750.0,0.68431269]
[1761574368422,0.12822372,114760.0,114750.0,0.85860462]
[1761574370991,0.12822372,114760.0,114750.0,0.76800462]
[1761574371482,0.12822372,114760.0,114750.0,0.59371269]
[1761574371687,0.30250047,114760.0,114750.0,0.59371269]
[1761574371896,0.98995399,114760.0,114750.0,0.43899269]
[1761574372065,0.98995399,114760.0,114750.0,0.59371269]
[1761574372713,0.30250047,114760.0,114750.0,0.59371269]
[1761574373181,0.30250047,114760.0,114740.0,0.0906]
[1761574373182,0.51429193,114750.0,114740.0,0.0906]
[1761574373327,1.31021204,114750.0,114740.0,0.68436]
[1761574374479,0.62275852,114750.0,114740.0,0.68436]
[1761574374709,0.62275852,114750.0,114740.0,0.85866712]
[1761574374710,0.42981901,114750.0,114740.0,0.85866712]
[1761574375056,0.46581901,114750.0,114740.0,0.85866712]
[1761574375257,0.12581901,114750.0,114740.0,0.85866712]
[1761574375856,0.26411094,114750.0,114740.0,0.68436]
[1761574376338,0.29711094,114750.0,114740.0,0.68436]
[1761574378574,0.32386195,114750.0,114740.0,0.68436]
[1761574378786,0.32386195,114750.0,114740.0,0.6792691]
[1761574378787,1.34230461,114750.0,114740.0,0.6792691]
[1761574378996,1.30930461,114750.0,114740.0,0.5245891]
[1761574379197,1.36879708,114750.0,114740.0,0.5245891]
[1761574379403,1.40479708,114750.0,114740.0,0.6792691]
[1761574379622,1.40579708,114750.0,114740.0,0.6792691]
[1761574380037,1.42198634,114750.0,114740.0,0.6792691]
[1761574380267,1.45184387,114750.0,114740.0,0.6792691]
[1761574380473,1.42853368,114750.0,114740.0,0.6792691]
[1761574380674,3.42853368,114750.0,114740.0,0.59376]
[1761574380899,3.49428183,114750.0,114740.0,0.59376]
[1761574381117,2.5603541,114750.0,114740.0,0.59376]
[1761574381309,0.02794807,114750.0,114740.0,1.45552064]
[1761574381518,0.03919706,114750.0,114740.0,0.76806712]
[1761574381637,0.04019706,114750.0,114740.0,0.76806712]
[1761574382268,0.00119706,114750.0,114740.0,0.76806712]
[1761574382747,0.12201607,114750.0,114740.0,0.76806712]
[1761574383166,0.12101607,114750.0,114740.0,0.76806712]
[1761574383390,0.12101607,114750.0,114740.0,0.59376]
[1761574383391,0.46101607,114750.0,114740.0,0.59376]
[1761574383796,0.46101607,114750.0,114740.0,0.76806712]
[1761574384649,0.12101607,114750.0,114740.0,0.76806712]
[1761574386723,0.12101607,114750.0,114740.0,0.59376]
[1761574386930,0.12101607,114750.0,114740.0,0.76806712]
[1761574387135,0.12101607,114750.0,114740.0,0.59376]
[1761574387136,1.33085253,114750.0,114740.0,0.59376]
[1761574387340,1.34949817,114750.0,114740.0,0.59376]
[1761574387945,1.31949817,114750.0,114740.0,0.59376]
[1761574388291,1.35849817,114750.0,114740.0,0.59376]
[1761574389145,1.39468045,114750.0,114740.0,0.59376]
[1761574389351,3.41799185,114750.0,114740.0,0.59376]
[1761574389509,3.34610855,114750.0,114740.0,0.59376]
[1761574389717,3.37327002,114750.0,114740.0,0.59376]
[1761574390241,2.6848165,114750.0,114740.0,0.59376]
[1761574390484,2.7003465,114750.0,114740.0,0.59376]
[1761574390610,2.39716302,114750.0,114740.0,0.59376]
[1761574391023,2.43616302,114750.0,114740.0,0.59376]
[1761574391222,2.39716302,114750.0,114740.0,0.59376]
[1761574391653,2.43816302,114750.0,114740.0,0.59376]
[1761574391894,2.43716302,114750.0,114740.0,0.59376]
[1761574392297,2.44216302,114750.0,114740.0,0.59376]
[1761574392722,1.7547095,114750.0,114740.0,0.59376]
[1761574392886,2.44216302,114750.0,114740.0,0.59376]
[1761574393293,2.47316751,114750.0,114740.0,0.59376]
[1761574394076,2.29285351,114750.0,114740.0,0.59376]
[1761574394279,1.61972883,114750.0,114740.0,0.59376]
[1761574394555,1.49826872,114750.0,114740.0,0.59376]
[1761574394709,0.86808229,114750.0,114740.0,0.59376]
[1761574394908,1.51935353,114750.0,114740.0,0.59376]
[1761574395117,0.55316308,114750.0,114740.0,0.59376]
[1761574395318,0.32995364,114750.0,114740.0,0.59376]
[1761574395535,0.311308,114750.0,114740.0,0.59376]
[1761574395680,0.67798333,114750.0,114740.0,0.59376]
[1761574395881,0.66491082,114750.0,114740.0,0.59376]
[1761574396082,0.67298395,114750.0,114740.0,0.59376]
[1761574396296,0.647308,114750.0,114740.0,0.59376]
[1761574396747,0.43101607,114750.0,114740.0,0.76806712]
[1761574397561,0.47101607,114750.0,114740.0,0.76806712]
[1761574398231,0.47201607,114750.0,114740.0,0.76806712]
[1761574398433,0.13201607,114750.0,114740.0,0.76806712]
[1761574398635,0.13101607,114750.0,114740.0,0.85788613]
[1761574399010,0.04119706,114750.0,114740.0,0.85788613]
[1761574399214,0.04119706,114750.0,114740.0,0.76806712]
[1761574400088,0.04119706,114750.0,114740.0,0.59376]
[1761574400340,0.13101607,114750.0,114740.0,0.76806712]
[1761574400560,0.265308,114750.0,114740.0,0.59376]
[1761574400992,0.09101607,114750.0,114740.0,0.76806712]
[1761574401530,0.09101607,114750.0,114740.0,0.59376]
[1761574401715,0.09101607,114750.0,114740.0,0.76806712]
[1761574401917,0.305308,114750.0,114740.0,0.59376]
[1761574402267,0.265308,114750.0,114740.0,0.59376]
[1761574402690,0.304308,114750.0,114740.0,0.59376]
[1761574403050,0.99176152,114750.0,114740.0,0.59376]
[1761574403497,0.95276152,114750.0,114740.0,0.59376]
[1761574403695,0.265308,114750.0,114740.0,0.59376]